bitfinex-derivatives/quotes_ETHF0:USTF0_20220103
["timestamp","ask_amount","ask_price","bid_price","bid_amount"]
[1641231975812,0.7906,3768.1,3767.4,1.45156487]
[1641231976511,0.79608817,3768.5,3767.4,1.45156487]
[1641231977313,2.00479,3768.1,3767.4,1.45156487]
[1641231977514,2.53509,3768.1,3767.4,1.32340787]
[1641231978513,3.33126682,3768.1,3767.4,1.32340787]
[1641231978716,3.33126682,3768.1,3767.5,0.87191827]
[1641231979213,0.79618324,3768.0,3767.5,0.87191827]
[1641231980015,0.79618324,3768.0,3767.4,2.19532614]
[1641231980216,0.79618324,3768.0,3767.4,2.32348314]
[1641231981117,0.79618324,3768.0,3767.4,1.45156487]
[1641231981419,0.79618324,3768.0,3767.4,1.32340787]
[1641231982317,1.51788324,3768.0,3767.4,1.32340787]
[1641231983017,0.7217,3768.0,3767.4,1.45156487]
[1641231983219,2.00479,3768.5,3767.4,2.32348314]
[1641231983420,2.00479,3768.5,3767.4,2.98258314]
[1641231984421,2.00479,3768.5,3767.7,0.87191827]
[1641231985220,2.00479,3768.5,3767.6,0.87191827]
[1641231985422,0.79606013,3768.6,3768.0,2.00479]
[1641231985623,2.00479,3768.9,3768.0,2.00479]
[1641231986526,2.00479,3768.9,3768.1,1.1539327]
[1641231986725,2.00479,3768.9,3768.2,0.128157]
[1641231986924,2.00479,3768.9,3768.2,0.933557]
[1641231990432,30.7233,3769.4,3768.7,1.5]
[1641231990732,2.24500479,3769.8,3769.0,1.5]
[1641231990933,2.99333972,3770.1,3769.0,1.5]
[1641231990934,2.24500479,3769.9,3769.1,0.128157]
[1641231991433,2.24500479,3769.9,3769.1,2.132947]
[1641231991634,2.24500479,3769.9,3769.2,0.79084178]
[1641231992433,2.00479,3770.0,3769.2,2.29084178]
[1641231992635,2.00479,3770.0,3769.2,0.79084178]
[1641231993036,1.77755677,3770.5,3769.7,1.5]
[1641231993234,1.77755677,3770.5,3769.8,1.5]
[1641231993534,1.77755677,3770.5,3770.0,2.00479]
[1641231993738,1.77755677,3770.6,3770.0,2.00479]
[1641231994534,1.77755677,3770.6,3770.1,1.17266425]
[1641231994937,2.0094184,3770.5,3770.1,1.17266425]
[1641231995139,2.88093608,3770.5,3770.1,1.17266425]
[1641231995338,2.7313184,3770.5,3770.1,1.17266425]
[1641231995837,0.14962007,3770.4,3770.1,1.17266425]
[1641231996038,0.229991,3770.3,3770.1,1.17266425]
[1641231996438,13.4394184,3770.5,3770.2,0.076609]
[1641231996638,13.4394184,3770.5,3770.1,1.17266425]
[1641231997038,1.77755677,3770.4,3770.1,1.17266425]
[1641231997337,0.229991,3770.3,3770.1,1.17266425]
[1641231997939,1.9286357,3770.0,3769.6,2.00479]
[1641231999340,1.77755677,3769.9,3769.6,2.00479]
[1641231999541,0.229991,3769.8,3769.6,2.00479]
[1641231999843,0.229991,3769.8,3769.7,1.31737255]
[1641232001042,2.60759483,3769.8,3769.7,1.31737255]
[1641232001442,4.61238483,3769.8,3769.7,1.31737255]
[1641232001842,17.54238483,3769.8,3769.7,1.31737255]
[1641232002243,2.34420951,3769.3,3768.7,2.00479]
[1641232002445,2.95960951,3769.3,3768.7,2.00479]
[1641232003048,11.43,3769.2,3768.7,3.12865241]
[1641232004246,11.43,3769.2,3768.7,1.12386241]
[1641232004444,1.5,3769.0,3768.7,1.12386241]
[1641232004644,12.93,3768.8,3768.1,0.87191827]
[1641232004946,1.86838631,3768.4,3768.1,0.87191827]
[1641232005144,1.86838631,3768.4,3768.0,0.87191827]
[1641232005145,3.94618631,3768.4,3768.0,0.87191827]
[1641232005343,2.44618631,3768.4,3768.0,0.87191827]
[1641232005544,2.00479,3768.1,3768.0,0.87191827]
[1641232005744,2.234781,3768.1,3768.0,0.87191827]
[1641232005945,14.4609494,3768.1,3767.4,0.86861533]
[1641232006144,1.5,3767.8,3767.4,0.86861533]
[1641232006344,1.5,3767.8,3767.4,0.07229657]
[1641232006943,2.96020035,3768.1,3767.4,0.07229657]
[1641232007146,2.96020035,3768.1,3767.3,0.128157]
[1641232007345,11.43,3768.0,3767.0,1.24943255]
[1641232007645,2.00479,3767.5,3767.0,1.24943255]
[1641232009146,2.00479,3767.5,3767.1,0.128157]
[1641232010248,2.00479,3767.5,3767.0,1.24943255]
[1641232016353,1.88517415,3767.7,3767.0,1.24943255]
[1641232016554,2.00479,3768.1,3767.2,1.5]
[1641232016753,2.00479,3768.1,3767.0,1.86953255]
[1641232016955,2.00479,3768.1,3767.2,1.32643763]
[1641232017356,2.00479,3768.1,3767.0,1.86953255]
[1641232017656,2.00479,3768.1,3767.4,2.00479]
[1641232019760,2.26179287,3768.4,3767.0,1.24943255]
[1641232019958,2.26179287,3768.4,3767.0,2.7065185]
[1641232020356,2.00479,3768.3,3767.4,2.00479]
[1641232023360,2.00479,3768.3,3767.4,3.33114318]
[1641232023560,2.00479,3768.3,3767.4,2.00479]
[1641232024360,2.00479,3768.6,3767.8,2.00479]
[1641232024561,2.00479,3768.6,3767.9,1.01127061]
[1641232024764,2.00479,3768.6,3768.0,1.45708595]
[1641232026066,2.00479,3768.6,3767.9,1.69047061]
[1641232026866,2.00479,3768.6,3768.0,1.45516604]
[1641232028167,2.00479,3768.6,3767.9,1.69047061]
[1641232029067,2.00479,3768.6,3767.9,2.55957422]
[1641232030469,2.00479,3768.6,3767.9,1.69047061]
[1641232031070,2.00479,3768.6,3768.0,1.5]
[1641232031671,2.00479,3768.6,3767.9,4.05957422]
[1641232032374,2.00479,3768.6,3767.9,2.55957422]
[1641232032771,2.00479,3768.6,3768.4,0.86910361]
[1641232032973,0.229991,3768.5,3768.4,0.86910361]
[1641232033772,2.00479,3768.6,3768.4,0.94571261]
[1641232033972,2.00479,3768.6,3768.4,1.71105384]
[1641232034171,2.00479,3768.6,3768.4,0.84195023]
[1641232034572,0.229991,3768.5,3768.4,0.76534123]
[1641232037074,2.00479,3768.6,3768.4,0.84195023]
[1641232037274,2.234781,3768.6,3768.4,0.84195023]
[1641232037477,2.234781,3768.6,3768.4,0.76534123]
[1641232040579,0.229991,3768.6,3768.4,0.76534123]
[1641232042484,2.00479,3769.0,3768.5,0.076609]
[1641232042885,2.00479,3769.0,3768.4,0.76534123]
[1641232044088,0.4015,3770.5,3768.6,1.5]
[1641232044288,2.24482749,3770.3,3769.0,1.5]
[1641232044487,2.24482749,3770.3,3769.4,1.32564459]
[1641232044688,4.24961749,3770.3,3769.5,2.00479]
[1641232044887,2.24482749,3770.2,3769.5,2.00479]
[1641232045086,1.79586199,3770.0,3769.6,0.72223087]
[1641232045488,11.43,3769.9,3769.6,0.72223087]
[1641232045687,0.79583505,3769.7,3765.6,6.61996799]
[1641232045889,0.79583505,3769.7,3767.1,11.43]
[1641232046288,0.79583505,3769.7,3768.9,1.25791915]
[1641232046690,2.00479,3769.4,3768.9,1.25791915]
[1641232046889,2.00479,3769.4,3769.0,0.86910361]
[1641232047989,2.00479,3769.4,3768.9,1.25791915]
[1641232052293,13.43479,3769.4,3768.9,1.25791915]
[1641232052493,14.23349,3769.4,3768.9,1.25791915]
[1641232052694,2.80349,3769.4,3768.9,1.25791915]
[1641232052898,11.43,3769.3,3768.9,1.25791915]
[1641232053096,11.43,3769.0,3768.5,0.86910361]
[1641232054296,3.58749637,3768.6,3768.3,1.18541151]
[1641232054496,0.229991,3768.5,3768.2,0.86910361]
[1641232054898,2.00479,3768.4,3768.2,0.86910361]
[1641232055098,2.82379,3768.4,3768.2,2.18582276]
[1641232055400,0.229991,3768.3,3768.2,2.18582276]
[1641232055899,0.229991,3768.3,3768.2,1.31671915]
[1641232058107,3.58807699,3768.0,3767.7,1.45516604]
[1641232058304,11.659991,3767.9,3767.7,1.45516604]
[1641232059106,2.00479,3767.8,3767.7,1.45516604]
[1641232059312,2.00479,3767.8,3767.5,0.84212924]
[1641232059506,0.229991,3767.7,3767.5,0.84212924]
[1641232061911,2.00479,3767.8,3767.6,0.076609]
[1641232063212,2.00479,3767.8,3767.6,1.53177504]
[1641232063614,2.00479,3767.8,3767.7,1.45516604]
[1641232063814,2.00479,3768.4,3767.7,1.45516604]
[1641232064014,4.30498579,3768.6,3768.1,1.5]
[1641232064216,4.30498579,3768.6,3768.2,0.128157]
[1641232064416,2.62730366,3769.3,3768.2,1.628157]
[1641232064816,4.42316565,3769.3,3768.2,1.628157]
[1641232065216,4.42316565,3769.3,3768.5,2.00479]
[1641232065416,4.42316565,3769.3,3768.5,2.73269]
[1641232066019,2.62730366,3769.3,3768.5,4.1857939]
[1641232066216,2.62730366,3769.3,3768.6,1.24270461]
[1641232069221,11.43,3769.2,3768.6,1.24270461]
[1641232069418,12.0387,3769.2,3768.6,1.24270461]
[1641232070522,1.5,3769.1,3768.6,1.24270461]
[1641232070725,12.0387,3769.2,3768.6,1.24270461]
[1641232071321,1.5,3769.1,3768.6,1.24270461]
[1641232071521,12.0387,3769.2,3768.6,1.24270461]
[1641232073423,12.0387,3769.2,3768.6,2.1163104]
[1641232075728,12.0387,3769.2,3768.7,0.87360579]
[1641232076127,11.43,3769.2,3768.7,0.87360579]
[1641232076927,11.43,3769.2,3768.8,0.87360579]
[1641232077926,11.43,3769.2,3768.7,0.87360579]
[1641232078529,1.68146113,3769.0,3768.7,0.87360579]
[1641232078728,0.229991,3768.9,3768.7,0.87360579]
[1641232080629,2.33861981,3768.9,3768.7,0.87360579]
[1641232080833,2.33861981,3768.9,3768.6,2.1163104]
[1641232081430,13.76861981,3768.9,3768.6,2.1163104]
[1641232082531,11.659991,3768.9,3768.5,1.99143808]
[1641232082932,0.229991,3768.9,3768.5,1.99143808]
[1641232083533,11.659991,3768.9,3768.5,1.99143808]
[1641232084134,11.659991,3768.9,3768.6,1.07820167]
[1641232086739,11.43,3768.9,3768.7,0.076609]
[1641232087940,11.659991,3768.9,3768.7,0.076609]
[1641232088141,4.48506829,3768.8,3768.6,1.62090167]
[1641232088341,4.48506829,3768.8,3768.6,1.07820167]
[1641232088940,0.229991,3768.7,3768.6,1.07820167]
[1641232089140,4.48506829,3768.8,3768.6,1.15481067]
[1641232089640,4.48506829,3768.8,3768.6,1.07820167]
[1641232089841,0.229991,3768.7,3768.6,1.07820167]
[1641232094243,4.48506829,3768.8,3768.6,1.07820167]
[1641232094843,4.71505929,3768.8,3768.6,1.07820167]
[1641232095244,4.48506829,3768.8,3768.6,1.07820167]
[1641232095846,0.229991,3768.7,3768.6,1.07820167]
[1641232098952,11.659991,3768.7,3768.6,1.07820167]
[1641232099147,12.464091,3768.7,3768.6,1.07820167]
[1641232099348,1.034091,3768.7,3768.6,1.07820167]
[1641232099548,0.8041,3768.7,3768.6,1.15481067]
[1641232099748,0.8041,3768.7,3768.6,1.07820167]
[1641232100249,4.48506829,3768.8,3768.6,1.07820167]
[1641232100451,0.229991,3768.7,3768.6,1.07820167]
[1641232101552,4.48506829,3768.8,3768.6,1.15481067]
[1641232101751,0.229991,3768.7,3768.6,1.07820167]
[1641232102151,4.48506829,3768.8,3768.6,1.07820167]
[1641232102353,4.48506829,3768.8,3768.6,1.67661067]
[1641232103855,4.48506829,3768.8,3768.6,3.12971457]
[1641232104655,4.48506829,3768.8,3768.6,1.67661067]
[1641232105255,0.229991,3768.7,3768.6,1.60000167]
[1641232105455,4.48506829,3768.8,3768.6,1.67661067]
[1641232105857,4.48506829,3768.8,3768.7,1.45483542]
[1641232106258,4.48506829,3768.8,3768.7,1.53144442]
[1641232106457,4.48506829,3768.8,3768.7,2.05173542]
[1641232106762,4.71505929,3768.8,3768.7,0.5969]
[1641232107862,4.71505929,3768.8,3768.6,2.53303709]
[1641232108260,4.48506829,3768.8,3768.6,2.60964609]
[1641232109365,0.229991,3768.7,3768.6,2.53303709]
[1641232109563,4.48506829,3768.8,3768.6,2.53303709]
[1641232110165,0.229991,3768.7,3768.6,2.53303709]
[1641232110367,4.48506829,3768.8,3768.6,2.60964609]
[1641232110766,4.48506829,3768.8,3768.7,1.45483542]
[1641232111466,4.48506829,3768.8,3768.6,2.60964609]
[1641232112069,4.48506829,3768.8,3768.7,1.45483542]
[1641232112269,5.25501196,3768.9,3768.7,1.45483542]
[1641232112567,0.229991,3768.8,3768.7,1.45483542]
[1641232113070,5.25501196,3768.9,3768.7,1.53144442]
[1641232115074,0.229991,3768.8,3768.7,1.45483542]
[1641232115873,5.25501196,3768.9,3768.7,1.53144442]
[1641232116375,5.25501196,3768.9,3768.7,0.076609]
[1641232116774,0.229991,3768.8,3768.6,1.07820167]
[1641232117974,5.25501196,3768.9,3768.6,1.15481067]
[1641232118175,0.229991,3768.8,3768.6,1.07820167]
[1641232119679,5.25501196,3768.9,3768.7,0.076609]
[1641232120078,0.229991,3768.8,3768.6,3.08299167]
[1641232120279,5.25501196,3768.9,3768.6,3.08299167]
[1641232121280,0.229991,3768.8,3768.6,3.08299167]
[1641232122283,16.44013273,3768.5,3767.9,2.91033207]
[1641232122881,16.44013273,3768.5,3768.0,0.67761564]
[1641232123282,4.84722802,3768.1,3767.9,3.85279221]
[1641232123483,11.659991,3768.0,3767.5,2.91033207]
[1641232123683,13.43479,3767.9,3767.5,2.91033207]
[1641232124083,13.43479,3767.9,3767.5,3.69449367]
[1641232124485,13.43479,3767.9,3767.8,0.74830546]
[1641232124684,13.43479,3767.9,3767.5,0.7841616]
[1641232125985,2.00479,3767.9,3767.8,0.87443531]
[1641232126184,2.234781,3767.9,3767.8,0.87443531]
[1641232126685,2.00479,3767.9,3767.8,0.95104431]
[1641232127885,2.00479,3767.9,3767.8,0.076609]
[1641232129387,2.00479,3767.9,3767.6,0.128157]
[1641232129589,2.00479,3767.9,3767.7,0.076609]
[1641232129888,0.229991,3767.8,3767.6,0.128157]
[1641232130490,2.00479,3767.9,3767.7,0.076609]
[1641232131688,2.234781,3767.9,3767.5,0.7841616]
[1641232132592,2.234781,3767.9,3767.5,2.24098753]
[1641232133192,2.788081,3767.9,3767.5,2.24098753]
[1641232134594,2.788081,3767.9,3767.8,0.87465507]
[1641232135597,14.218081,3767.9,3767.5,0.7841616]
[1641232135797,15.17186399,3767.9,3767.5,0.7841616]
[1641232139303,15.17186399,3767.9,3767.8,0.87515979]
[1641232139702,14.94187299,3767.9,3767.8,0.87515979]
[1641232139903,15.17186399,3767.9,3767.8,0.87515979]
[1641232140704,15.17186399,3767.9,3767.8,1.45682593]
[1641232140906,3.74186399,3767.9,3767.8,0.56309325]
[1641232141309,14.218081,3767.9,3767.8,0.56309325]
[1641232141505,14.218081,3767.9,3767.5,0.7841616]
[1641232144412,1.5,3767.6,3767.1,3.51803039]
[1641232144610,1.5,3767.6,3766.8,2.91033207]
[1641232145412,1.5,3767.5,3766.9,0.84850719]
[1641232145812,12.77480053,3767.7,3766.9,0.84850719]
[1641232145813,2.00479,3767.0,3766.9,0.84850719]
[1641232146012,14.435581,3767.0,3766.9,0.84850719]
[1641232146511,3.005581,3767.0,3766.9,0.84850719]
[1641232147210,2.77559,3767.0,3766.9,0.92511619]
[1641232147410,2.00479,3767.0,3766.9,0.92511619]
[1641232149314,0.20839495,3767.0,3766.9,0.92511619]
[1641232149813,2.00479,3767.4,3766.9,0.92511619]
[1641232151319,2.00479,3767.4,3767.2,0.8763683]
[1641232151827,2.00479,3767.4,3767.3,0.076609]
[1641232155626,2.00479,3767.4,3767.2,0.8763683]
[1641232155824,2.00479,3767.4,3767.3,0.076609]
[1641232157434,2.00479,3767.4,3767.2,0.8763683]
[1641232157635,2.234781,3767.4,3767.2,0.8763683]
[1641232158635,2.00479,3767.4,3767.3,0.076609]
[1641232158834,2.00479,3767.4,3767.3,0.763509]
[1641232159035,2.00479,3767.4,3767.3,1.6398773]
[1641232159734,2.00479,3767.4,3767.3,1.5632683]
[1641232159934,2.234781,3767.4,3767.3,0.6869]
[1641232160335,2.00479,3767.4,3767.3,0.763509]
[1641232161436,2.234781,3767.4,3767.3,0.6869]
[1641232161636,2.234781,3767.4,3766.9,0.84850719]
[1641232162037,2.00479,3767.4,3766.8,1.46061383]
[1641232164141,2.00479,3767.4,3766.9,0.72154337]
[1641232165442,2.00479,3767.4,3767.3,0.87774323]
[1641232165644,2.234781,3767.4,3767.3,0.87774323]
[1641232166443,2.00479,3767.4,3767.3,0.95435223]
[1641232166643,2.234781,3767.4,3767.3,0.87774323]
[1641232167544,30.15032749,3767.4,3767.3,0.87774323]
[1641232169947,30.15032749,3767.4,3766.9,0.72154337]
[1641232171849,1.32070987,3767.2,3766.9,0.72154337]
[1641232172050,0.229991,3767.1,3766.9,0.72154337]
[1641232172350,1.024291,3767.1,3766.9,0.72154337]
[1641232177863,12.454291,3767.1,3766.9,0.72154337]
[1641232178365,0.32911726,3766.8,3766.3,1.46061383]
[1641232178766,0.7943,3767.1,3766.3,1.46061383]
[1641232178968,42.85033649,3767.4,3766.3,1.46061383]
[1641232179868,42.85033649,3767.4,3766.4,0.68270715]
[1641232180369,41.35033649,3767.4,3766.4,0.68270715]
[1641232181168,29.92033649,3767.4,3766.4,0.68270715]
[1641232181570,29.92033649,3767.4,3766.4,2.14332098]
[1641232182670,2.00479,3767.4,3766.4,2.78522098]
[1641232182870,2.00479,3767.4,3766.6,1.5]
[1641232183070,2.00479,3767.4,3766.7,0.128157]
[1641232183670,2.00479,3767.4,3766.7,0.64866746]
[1641232184075,2.00479,3767.4,3766.9,1.46061383]
[1641232184273,2.00479,3767.9,3767.0,2.53863378]
[1641232184472,2.00479,3767.9,3767.3,2.00479]
[1641232184671,2.00479,3767.9,3767.3,2.80249]
[1641232186577,2.00479,3767.9,3767.3,2.00479]
[1641232186776,13.43479,3767.9,3767.3,2.00479]
[1641232186977,13.43479,3767.9,3767.4,1.46061383]
[1641232188378,0.09354571,3767.8,3767.5,0.8798869]
[1641232188578,0.229991,3767.7,3767.5,0.8798869]
[1641232189081,0.229991,3767.7,3767.4,0.8798869]
[1641232189779,1.02623818,3767.7,3767.4,0.8798869]
[1641232190180,1.02623818,3767.7,3767.5,0.8798869]
[1641232190781,1.02623818,3767.7,3767.5,0.9564959]
[1641232191180,1.02623818,3767.7,3767.6,0.92643705]
[1641232191583,1.02623818,3767.7,3767.6,1.00304605]
[1641232191880,1.02623818,3767.7,3767.6,0.92643705]
[1641232192081,0.79624718,3767.7,3767.6,1.80632395]
[1641232192780,1.02623818,3767.7,3767.6,1.80632395]
[1641232192981,0.79624718,3767.7,3767.6,1.00304605]
[1641232193380,0.79624718,3767.7,3767.6,0.92643705]
[1641232193681,1.02623818,3767.7,3767.6,0.92643705]
[1641232193881,25.11825385,3767.7,3767.6,0.92643705]
[1641232194581,36.54825385,3767.7,3767.6,0.92643705]
[1641232194781,36.54825385,3767.7,3767.3,2.00479]
[1641232194983,38.87135385,3767.7,3767.5,0.87984962]
[1641232195382,37.37135385,3767.7,3767.5,0.87984962]
[1641232195584,38.87135385,3767.7,3767.5,0.87984962]
[1641232195884,37.37135385,3767.7,3767.5,0.87984962]
[1641232196184,0.0935517,3767.6,3767.3,2.88463962]
[1641232196385,0.229991,3767.5,3767.3,0.87984962]
[1641232197286,0.229991,3767.5,3767.2,0.87984962]
[1641232198487,38.33386225,3767.7,3767.3,0.076609]
[1641232198688,26.90386225,3767.7,3767.3,0.076609]
[1641232198887,26.08076225,3767.7,3767.3,0.076609]
[1641232199287,26.08076225,3767.7,3767.3,0.95645862]
[1641232199288,0.0935506,3767.6,3767.3,0.95645862]
[1641232199488,0.229991,3767.5,3767.3,0.87984962]
[1641232199888,0.26578918,3767.3,3767.0,0.84299218]
[1641232200287,0.229991,3767.2,3767.0,0.84299218]
[1641232200488,0.0935506,3767.6,3767.0,0.84299218]
[1641232200689,35.52201567,3767.7,3767.0,0.84299218]
[1641232200889,36.71451507,3767.7,3767.0,0.84299218]
[1641232201791,0.09354969,3767.6,3767.0,0.84299218]
[1641232205193,0.09354969,3767.6,3767.0,0.97114918]
[1641232205493,1.1756707,3767.2,3767.0,0.97114918]
[1641232205698,1.1756707,3767.2,3767.1,0.076609]
[1641232206696,1.4056617,3767.2,3767.0,0.84299218]
[1641232207297,1.1756707,3767.2,3767.0,0.84299218]
[1641232207698,0.229991,3767.1,3767.0,0.84299218]
[1641232208600,1.1756707,3767.2,3767.0,0.91960118]
[1641232208800,1.1756707,3767.2,3767.0,0.84299218]
[1641232209604,1.1756707,3767.2,3767.1,0.076609]
[1641232210006,1.4056617,3767.2,3767.0,0.84299218]
[1641232210205,2.0575617,3767.2,3767.0,0.84299218]
[1641232212910,1.8275707,3767.2,3767.1,0.076609]
[1641232213312,1.8275707,3767.2,3767.0,0.84299218]
[1641232213512,2.0575617,3767.2,3767.0,0.84299218]
[1641232214416,2.0575617,3767.2,3767.0,0.91960118]
[1641232214714,2.0575617,3767.2,3767.0,0.84299218]
[1641232215119,1.36276451,3766.8,3766.6,1.46061383]
[1641232216219,1.1924994,3767.6,3766.7,1.16303482]
[1641232216620,2.00479,3767.4,3766.7,1.16303482]
[1641232217922,2.00479,3767.4,3766.7,2.62364865]
[1641232219024,25.50263603,3767.7,3767.3,1.5]
[1641232219025,1.41062036,3767.7,3767.3,1.5]
[1641232219225,1.1924994,3767.8,3767.4,0.128157]
[1641232219829,2.00479,3767.9,3767.4,0.128157]
[1641232220027,2.00479,3767.9,3767.5,0.69836843]
[1641232220928,2.00479,3767.9,3767.5,2.15898226]
[1641232223033,2.00479,3767.9,3767.7,0.87711986]
[1641232223231,2.00479,3767.9,3767.8,0.076609]
[1641232223732,2.234781,3767.9,3767.7,0.87711986]
[1641232224232,2.234781,3767.9,3767.5,0.69836843]
[1641232224433,2.00479,3767.9,3767.8,0.076609]
[1641232224734,2.234781,3767.9,3767.5,0.69836843]
[1641232224933,2.00479,3767.9,3767.5,0.69836843]
[1641232226236,2.52919,3767.9,3767.5,0.69836843]
[1641232233845,2.00479,3767.9,3767.5,0.69836843]
[1641232234244,60.6463,3768.5,3767.5,0.69836843]
[1641232234946,60.6463,3768.5,3768.2,2.00479]
[1641232235147,2.00479,3769.0,3768.3,0.076609]
[1641232235448,3.50479,3769.0,3768.3,0.076609]
[1641232235746,3.50479,3769.0,3768.2,2.82078677]
[1641232236146,0.0935268,3768.9,3768.2,2.82078677]
[1641232238550,0.0935268,3768.9,3768.3,0.128157]
[1641232239853,0.0935268,3768.9,3768.2,2.82078677]
[1641232241054,0.0935268,3768.9,3768.2,0.81599677]
[1641232241554,1.2860262,3768.9,3768.2,0.81599677]
[1641232242158,2.08202357,3768.9,3768.2,0.81599677]
[1641232242657,13.51202357,3768.9,3768.2,0.81599677]
[1641232242859,12.31952417,3768.9,3768.2,0.81599677]
[1641232243159,2.00479,3768.3,3768.2,0.81599677]
[1641232243355,2.67959,3768.3,3768.2,0.81599677]
[1641232243755,2.67959,3768.3,3768.2,0.89260577]
[1641232243959,2.67959,3768.3,3768.2,0.81599677]
[1641232244355,2.909581,3768.3,3768.2,0.81599677]
[1641232244756,2.67959,3768.3,3768.2,0.81599677]
[1641232245257,2.909581,3768.3,3768.2,0.81599677]
[1641232249365,2.909581,3768.3,3767.8,0.87685234]
[1641232249563,2.909581,3768.3,3767.7,1.02872404]
[1641232249864,14.339581,3768.3,3767.7,1.02872404]
[1641232250065,2.11909425,3768.1,3767.7,1.02872404]
[1641232251272,2.00479,3767.8,3767.7,1.02872404]
[1641232251468,2.234781,3767.8,3767.7,1.02872404]
[1641232257373,3.03101029,3767.8,3767.7,1.02872404]
[1641232257673,15.96101029,3767.8,3766.9,1.46061383]
[1641232257874,1.5,3767.2,3765.7,30.0557]
[1641232258074,11.43,3767.1,3766.0,2.91033207]
[1641232258275,2.29643588,3766.8,3766.0,3.93119307]
[1641232258472,0.79643588,3766.8,3766.0,3.93119307]
[1641232259575,2.00479,3766.4,3766.0,1.020861]
[1641232259772,2.73179,3766.4,3766.0,1.020861]
[1641232260675,2.73179,3766.4,3765.5,3.07269535]
[1641232262076,2.73179,3766.4,3765.6,0.128157]
[1641232262477,2.73179,3766.4,3765.5,3.07269535]
[1641232263076,26.51816694,3765.9,3765.5,3.07269535]
[1641232267482,26.51816694,3765.9,3765.5,1.06790535]
[1641232267682,5.31104774,3765.8,3764.6,3.3943151]
[1641232268082,5.31104774,3765.8,3765.2,1.4695705]
[1641232269387,5.31104774,3765.8,3765.1,1.4695705]
[1641232269586,2.00479,3765.2,3765.1,1.4695705]
[1641232269884,2.234781,3765.2,3765.1,1.4695705]
[1641232270385,3.019481,3765.2,3765.1,1.4695705]
[1641232271190,1.22258635,3765.2,3765.1,1.4695705]
[1641232271587,1.22258635,3765.2,3765.0,2.23489627]
[1641232272788,1.22258635,3765.2,3765.0,1.4695705]
[1641232272990,3.07724438,3765.0,3764.6,0.74857149]
[1641232273191,0.99259535,3765.2,3764.9,1.47057919]
[1641232273491,0.229991,3765.1,3764.9,1.47057919]
[1641232273892,0.229991,3765.1,3764.6,0.74857149]
[1641232274095,0.229991,3765.1,3764.7,1.07223068]
[1641232277497,0.229991,3765.1,3765.0,0.88208353]
[1641232278499,0.229991,3765.1,3764.9,0.88208353]
[1641232279704,13.43479,3765.0,3764.9,0.88208353]
[1641232280301,13.43479,3765.0,3764.8,0.88208353]
[1641232280503,0.229991,3764.9,3764.8,0.88208353]
[1641232283110,0.32359778,3764.9,3764.7,2.54470682]
[1641232283910,0.32359778,3764.9,3764.7,2.62131582]
[1641232284212,0.229991,3764.9,3764.7,2.54470682]
[1641232286012,0.229991,3764.9,3764.7,1.07223068]
[1641232286412,3.1972894,3765.0,3764.7,1.14883968]
[1641232287013,1.1924994,3765.1,3764.7,1.14883968]
[1641232287814,1.1924994,3765.1,3765.0,2.00479]
[1641232288022,1.1924994,3765.1,3765.0,3.55387514]
[1641232288214,1.1924994,3765.4,3765.0,3.55387514]
[1641232288615,1.1924994,3765.4,3765.0,3.47726614]
[1641232289616,0.59195113,3765.8,3765.0,3.47726614]
[1641232289617,1.1924994,3765.5,3765.1,1.47247614]
[1641232290621,1.1924994,3765.5,3765.2,1.5]
[1641232290819,1.59130725,3765.8,3765.3,0.076609]
[1641232291017,1.59130725,3765.8,3765.3,0.204766]
[1641232291618,1.49770842,3765.8,3765.4,1.28415422]
[1641232291918,1.49770842,3765.8,3765.7,2.00479]
[1641232292118,1.49770842,3766.2,3765.7,2.081399]
[1641232293018,0.09357801,3766.2,3765.9,1.46978854]
[1641232293221,0.09357801,3766.2,3766.0,0.076609]
[1641232293619,0.09357801,3766.2,3766.1,1.04081365]
[1641232296724,2.00479,3766.3,3766.1,1.04081365]
[1641232296927,2.00479,3766.3,3766.2,0.076609]
[1641232297124,2.00479,3766.3,3766.1,1.04081365]
[1641232298124,2.00479,3766.3,3766.2,0.076609]
[1641232299127,2.00479,3766.3,3766.2,1.54639754]
[1641232299327,1.49770842,3766.9,3766.2,1.54639754]
[1641232300030,2.00479,3767.0,3766.2,0.076609]
[1641232303331,3.06672504,3767.0,3766.2,0.076609]
[1641232303734,3.06672504,3767.0,3766.1,1.04081365]
[1641232303931,1.05183414,3766.5,3765.7,2.88132661]
[1641232304132,13.98183414,3766.5,3765.4,0.87653661]
[1641232304732,12.48183414,3766.5,3765.4,0.87653661]
[1641232304931,12.48183414,3766.5,3765.5,1.20810344]
[1641232305933,2.00479,3766.1,3765.5,1.20810344]
[1641232306134,2.69869,3766.1,3765.5,1.20810344]
[1641232306433,14.12869,3766.1,3765.5,1.20810344]
[1641232306634,1.22279095,3765.7,3765.0,2.00479]
[1641232307937,3.50479,3765.5,3764.6,2.00479]
[1641232308135,13.43479,3765.5,3764.6,2.00479]
[1641232308535,2.00479,3765.5,3764.6,2.00479]
[1641232309737,2.37869701,3765.2,3764.6,2.00479]
[1641232310036,2.99009701,3765.2,3764.6,2.00479]
[1641232310236,4.49009701,3765.2,3764.6,2.00479]
[1641232310636,2.99009701,3765.2,3764.6,2.00479]
[1641232311643,2.99009701,3765.2,3764.6,2.132947]
[1641232311842,2.37869701,3765.2,3764.6,2.132947]
[1641232312346,1.1909455,3765.7,3764.6,2.132947]
[1641232312544,1.1909455,3765.7,3764.6,2.655047]
[1641232313545,1.49770842,3765.5,3765.4,0.87653661]
[1641232313745,1.49770842,3765.5,3765.4,1.52793661]
[1641232314747,1.49770842,3765.5,3765.4,0.87653661]
[1641232314946,0.09360418,3765.5,3765.1,2.00479]
[1641232315948,1.49770842,3765.7,3765.1,2.00479]
[1641232316948,1.49770842,3765.9,3765.2,1.46978854]
[1641232318049,1.5913126,3766.0,3765.3,1.46978854]
[1641232319050,1.49770842,3765.9,3765.7,0.8833177]
[1641232319252,1.72769942,3765.9,3765.7,0.8833177]
[1641232320653,1.72769942,3765.9,3765.8,0.8833177]
[1641232321254,1.72769942,3765.9,3765.2,1.46978854]
[1641232321255,0.229991,3765.9,3765.7,0.8833177]
[1641232322055,0.229991,3765.9,3765.7,0.9599267]
[1641232322255,1.7275543,3765.9,3765.7,0.9599267]
[1641232322455,1.7275543,3765.9,3765.7,0.8833177]
[1641232322955,1.4975633,3765.9,3765.7,0.8833177]
[1641232323157,0.229991,3765.8,3765.3,0.128157]
[1641232323858,1.17379219,3765.8,3765.3,0.128157]